bitfinex-derivatives/quotes_SOLF0:USTF0_20250227
["timestamp","ask_amount","ask_price","bid_price","bid_amount"]
[1740670587627,197.48,137.83,137.7,195.0]
[1740670587820,7.8449,137.84,137.71,1.18692096]
[1740670588021,25.59682,137.86,137.71,197.63924831]
[1740670588223,4.1258,137.83,137.72,1.18692096]
[1740670588528,0.04717163,137.8,137.78,7.2639]
[1740670589428,0.04717163,137.8,137.77,0.05236359]
[1740670589627,0.04717163,137.8,137.79,7.2638]
[1740670589926,0.04717163,137.8,137.77,0.05236359]
[1740670590330,0.04717163,137.8,137.78,7.264]
[1740670590529,0.04717163,137.8,137.77,0.05236359]
[1740670591227,7.2642,137.79,137.77,0.05236359]
[1740670591629,0.04717163,137.8,137.77,0.05236359]
[1740670591928,7.2641,137.79,137.77,0.05236359]
[1740670592128,0.04717163,137.8,137.77,0.05236359]
[1740670592424,7.31067163,137.8,137.77,0.05236359]
[1740670592830,0.04717163,137.8,137.77,0.05236359]
[1740670595031,7.2643,137.78,137.77,0.05236359]
[1740670595230,0.04717163,137.8,137.77,0.05236359]
[1740670596827,0.04717163,137.8,137.77,21.83236359]
[1740670596828,7.163e-05,137.8,137.77,21.83236359]
[1740670597132,25.59682,137.86,137.85,7.2606]
[1740670597327,198.03330137,137.97,137.77,229.27236359]
[1740670597530,198.03330137,137.97,137.78,1.18415491]
[1740670597733,198.03330137,137.97,137.79,1.18360594]
[1740670598128,205.28770137,137.97,137.86,7.2597]
[1740670598323,0.05083856,137.88,137.86,7.2597]
[1740670598529,205.28770137,137.97,137.86,7.2597]
[1740670598737,205.28770137,137.97,137.8,195.0]
[1740670599034,0.05191247,137.88,137.86,0.04885765]
[1740670599229,198.03330137,137.97,137.86,0.04885765]
[1740670599430,0.04925115,137.88,137.86,0.04885765]
[1740670599630,198.03330137,137.97,137.86,0.04885765]
[1740670599930,0.05257028,137.91,137.86,0.04885765]
[1740670600330,0.05257028,137.91,137.82,29.89262489]
[1740670600529,12.46,137.9,137.87,0.05250004]
[1740670600930,0.05159701,137.88,137.87,0.05250004]
[1740670602135,7.31059701,137.88,137.87,0.05250004]
[1740670602334,0.05159701,137.88,137.87,0.05250004]
[1740670605231,12.44,137.96,137.87,0.05250004]
[1740670605534,7.2577,137.91,137.81,195.0]
[1740670605732,12.44,137.96,137.81,195.0]
[1740670606232,12.44,137.96,137.87,0.05540247]
[1740670606427,12.0261,137.98,137.87,0.05540247]
[1740670606633,197.38,137.99,137.87,195.0]
[1740670606832,11.6375,138.06,137.91,0.05482709]
[1740670607034,7.2502,138.05,137.96,7.2548]
[1740670607230,7.2502,138.05,137.97,0.05253027]
[1740670607437,24.0775,138.06,137.97,0.05253027]
[1740670607639,31.3271,138.06,137.97,0.05253027]
[1740670607839,31.3271,138.06,137.96,11.4217]
[1740670608137,24.0775,138.06,138.0,0.05044081]
[1740670608734,7.252,138.02,137.89,12.44]
[1740670608939,24.0775,138.06,137.9,11.4217]
[1740670609738,24.0775,138.06,137.91,7.2569]
[1740670609941,0.05084936,137.99,137.97,0.05135831]
[1740670610341,7.2507,138.04,137.91,7.257]
[1740670610640,24.0775,138.06,137.9,11.4217]
[1740670610641,0.04681884,137.99,137.97,0.05078965]
[1740670610936,7.2517,138.02,137.9,11.4217]
[1740670611136,24.0775,138.06,137.97,0.0558092]
[1740670611334,0.04782042,137.99,137.97,0.0558092]
[1740670611541,1.33247521,138.04,137.9,11.4217]
[1740670611736,0.05554302,137.99,137.97,0.04809967]
[1740670612141,24.0775,138.06,137.9,11.4217]
[1740670612345,0.04737877,137.99,137.97,0.05343893]
[1740670612740,1.33244465,138.05,137.9,11.4217]
[1740670612942,0.05285711,137.99,137.97,0.04840734]
[1740670613346,1.33247541,138.05,137.9,11.4217]
[1740670613534,0.05479015,137.99,137.97,0.05107033]
[1740670613933,24.0775,138.06,137.9,11.4217]
[1740670614244,0.04715556,137.99,137.97,0.05479458]
[1740670614433,12.44,137.98,137.97,0.05479458]
[1740670614635,12.44,137.98,137.81,29.89262489]
[1740670614837,11.3618,137.97,137.83,12.1785]
[1740670615037,7.2552,137.96,137.88,7.2589]
[1740670615235,11.3618,137.97,137.83,12.1785]
[1740670615440,198.53312853,137.96,137.83,12.1785]
[1740670615646,197.2,137.96,137.83,12.1785]
[1740670616143,7.2585,137.9,137.88,0.05049692]
[1740670616535,12.49533249,137.91,137.88,0.05049692]
[1740670617645,7.8845,137.9,137.78,4.0515]
[1740670617944,3.8233,137.89,137.74,7.9682]
[1740670618246,7.2609,137.85,137.74,7.9682]
[1740670618446,3.8233,137.89,137.74,7.9682]
[1740670618751,3.8233,137.89,137.77,7.2648]
[1740670618949,0.05346797,137.83,137.8,0.04765423]
[1740670619249,19.7012,137.84,137.77,7.2645]
[1740670619556,0.05346848,137.83,137.8,0.0487212]
[1740670620351,0.05346848,137.83,137.8,7.3119212]
[1740670620556,0.05346848,137.83,137.8,0.0487212]
[1740670621350,0.05346848,137.83,137.82,7.2622]
[1740670621751,12.44,137.89,137.82,21.76]
[1740670621960,12.44,137.89,137.83,8.1402]
[1740670622852,0.04954435,137.87,137.85,0.04815142]
[1740670623359,0.04954435,137.87,137.85,7.30845142]
[1740670623549,0.04954435,137.87,137.85,0.04815142]
[1740670627057,7.30904435,137.87,137.85,0.04815142]
[1740670627253,7.9274,137.86,137.85,0.04815142]
[1740670627450,11.7243,137.86,137.85,0.04815142]
[1740670628253,0.04954435,137.87,137.85,0.04815142]
[1740670628758,0.04954435,137.87,137.85,7.30825142]
[1740670628951,0.04954435,137.87,137.85,0.04815142]
[1740670629351,0.04954435,137.87,137.86,7.2601]
[1740670629754,0.04954435,137.87,137.85,0.04815142]
[1740670629956,0.04954435,137.87,137.85,7.30845142]
[1740670630352,0.04954435,137.87,137.85,0.04815142]
[1740670630548,0.04954435,137.87,137.86,7.2601]
[1740670631258,0.04954435,137.87,137.86,19.1277]
[1740670631852,0.04954435,137.87,137.85,0.04815142]
[1740670634366,0.04954435,137.87,137.86,7.2601]
[1740670635160,0.04954435,137.87,137.85,7.30855142]
[1740670635361,0.04954435,137.87,137.85,0.04815142]
[1740670635664,0.04954435,137.87,137.86,7.2601]
[1740670637060,0.04954435,137.87,137.85,39.90469746]
[1740670637265,12.44,137.94,137.85,39.90469746]
[1740670637465,19.6962,137.94,137.85,39.85654604]
[1740670637667,12.44,137.94,137.85,39.85654604]
[1740670638269,0.04621174,137.91,137.88,0.0555178]
[1740670638666,0.04621174,137.91,137.9,7.258]
[1740670638872,0.04621174,137.91,137.89,11.8488]
[1740670639370,12.44,138.02,137.89,33.6088]
[1740670639569,7.2528,138.0,137.89,11.8488]
[1740670639765,12.44,138.02,137.92,7.2566]
[1740670639970,197.24,138.04,137.89,11.8488]
[1740670640168,7.2518,138.02,137.89,11.8488]
[1740670640363,12.44,138.03,137.89,11.8488]
[1740670640668,12.44,138.03,137.94,0.0544226]
[1740670640868,7.2525,138.01,137.93,7.2561]
[1740670641068,7.2525,138.01,137.97,0.0462964]
[1740670641368,12.44,138.03,137.97,0.0462964]
[1740670641871,7.2538,137.98,137.97,0.0462964]
[1740670642468,21.74,137.98,137.89,39.85654604]
[1740670642772,12.44,138.03,137.89,39.85654604]
[1740670642967,3.9171,138.02,137.92,7.2566]
[1740670643272,3.9171,138.02,137.89,39.85654604]
[1740670643473,7.8042,138.01,137.91,7.2573]
[1740670643668,7.2541,137.98,137.91,7.2573]
[1740670643875,0.05559739,137.97,137.94,0.05085047]
[1740670644174,7.2536,137.99,137.87,47.93804604]
[1740670644371,0.04757894,137.97,137.94,0.04893856]
[1740670647471,12.42,137.96,137.94,0.04893856]
[1740670651172,12.42,137.96,137.94,7.30473856]
[1740670651373,12.42,137.96,137.94,0.04893856]
[1740670653878,12.42,137.96,137.89,39.85654604]
[1740670654074,4.0271,137.95,137.89,39.85654604]
[1740670654679,12.42,137.96,137.89,39.85654604]
[1740670655076,0.0458801,137.94,137.91,0.05092562]
[1740670655271,0.0458801,137.94,137.91,7.30812562]
[1740670655479,0.0458801,137.94,137.91,0.05092562]
[1740670656475,7.3017801,137.94,137.91,0.05092562]
[1740670656677,0.0458801,137.94,137.91,0.05092562]
[1740670658380,0.0458801,137.94,137.91,7.30812562]
[1740670658581,0.0458801,137.94,137.91,0.05092562]
[1740670658882,197.24,138.04,137.97,7.2542]
[1740670659380,208.9679,138.04,137.97,7.2542]
[1740670659582,208.9679,138.04,137.92,7.9264]
[1740670659975,216.2187,138.04,137.92,7.9264]
[1740670660181,0.05235273,137.99,137.97,0.04853615]
[1740670660383,208.9679,138.04,137.97,0.04853615]
[1740670660582,0.05238297,137.99,137.97,0.04853615]
[1740670660777,7.2526,138.01,137.97,0.04853615]
[1740670660972,0.05360055,137.99,137.97,0.04853615]
[1740670661178,12.42,137.98,137.92,9.96392115]
[1740670661381,4.0036,137.97,137.92,9.96392115]
[1740670661674,7.8969,137.97,137.92,9.96392115]
[1740670662279,0.04656396,137.96,137.93,0.0552328]
[1740670663082,0.04656396,137.96,137.89,39.85654604]
[1740670663285,7.2566,137.93,137.89,39.85654604]
[1740670663784,7.8969,137.97,137.89,39.85654604]
[1740670664283,0.05333172,137.94,137.92,0.05080278]
[1740670664589,0.05333172,137.94,137.89,39.85654604]
[1740670664781,0.05333172,137.94,137.9,7.2579]
[1740670665578,0.05333172,137.94,137.93,7.2564]
[1740670668691,3.808,138.02,137.91,0.05275756]
[1740670668890,3.808,138.02,137.9,39.85654604]
[1740670669288,7.8109,138.02,137.96,7.2548]
[1740670669586,7.8109,138.02,137.9,39.85654604]
[1740670669786,7.8109,138.02,137.94,7.2557]
[1740670669989,0.05034403,137.97,137.95,0.04927859]
[1740670670290,7.2522,138.01,137.95,0.04927859]
[1740670670488,0.05043261,137.97,137.95,0.04927859]
[1740670674392,7.30503261,137.97,137.92,39.85654604]
[1740670674893,7.2551,137.96,137.92,39.85654604]
[1740670675693,7.2551,137.96,137.93,0.0544077]
[1740670675993,0.05043261,137.97,137.92,39.85654604]
[1740670676196,3.8005,137.95,137.92,27.60314604]
[1740670676396,7.2564,137.93,137.92,27.60314604]
[1740670676994,3.744,137.94,137.9,15.51156907]
[1740670677291,3.79466175,137.94,137.91,0.04594458]
[1740670678390,0.05066175,137.94,137.93,7.2564]
[1740670678589,0.05066175,137.94,137.91,0.04594458]
[1740670678793,0.05066175,137.94,137.91,7.30294458]
[1740670678994,0.05066175,137.94,137.91,0.04594458]
[1740670679996,7.30676175,137.94,137.91,0.04594458]
[1740670680202,0.05066175,137.94,137.91,0.04594458]
[1740670680595,0.05066175,137.94,137.92,7.2565]
[1740670681095,0.05066175,137.94,137.91,0.04594458]
[1740670681596,197.2,138.03,137.91,7.60684458]
[1740670681795,12.42,138.02,137.91,7.60684458]
[1740670681994,204.4514,138.03,137.96,7.2544]
[1740670682188,209.62,138.03,137.91,7.5609]
[1740670682499,7.2525,138.01,137.94,7.2559]
[1740670682691,209.62,138.03,137.91,7.5609]
[1740670682894,0.05491862,137.99,137.96,0.04694712]
[1740670684201,0.05491862,137.99,137.98,7.2538]
[1740670684402,197.2,138.03,137.96,0.04694712]
[1740670684800,197.2,138.03,137.98,7.2534]
[1740670685000,197.2,138.03,137.92,15.51156907]
[1740670685200,197.2,138.03,137.97,7.2538]
[1740670685401,197.2,138.03,137.92,15.51156907]
[1740670685594,0.05129462,138.01,137.99,0.04908316]
[1740670685799,0.05129462,138.01,137.92,15.51156907]
[1740670686102,197.2,138.03,137.99,0.05171562]
[1740670686399,0.0537431,137.98,137.97,7.2543]
[1740670686698,197.16,138.11,138.0,0.0525889]
[1740670687002,12.42,138.1,137.96,9.96392115]
[1740670687301,197.16,138.11,137.96,9.96392115]
[1740670687897,0.04934302,138.05,138.02,0.05080018]
[1740670688103,197.16,138.11,138.02,0.05080018]
[1740670688402,197.16,138.11,137.98,7.9684]
[1740670688605,197.16,138.11,137.98,202.9684]
[1740670689004,197.16,138.11,137.99,1.17860908]
[1740670689196,12.42,138.13,138.08,7.2481]
[1740670689395,0.04999403,138.06,138.03,0.04865836]
[1740670689600,12.42,138.13,138.09,0.04830514]
[1740670689898,7.7394,138.17,138.1,7.30404693]
[1740670690098,7.7394,138.17,138.11,7.30404693]
[1740670690296,7.7394,138.17,138.12,7.30404693]
[1740670690496,7.7394,138.17,138.13,7.30404693]
[1740670690704,7.7394,138.17,138.14,7.35139489]
[1740670690894,7.7394,138.17,138.15,7.30404693]
[1740670691100,12.42,138.18,138.16,7.30404693]
[1740670691300,12.42,138.18,138.17,7.30404693]
[1740670691501,197.14,138.19,138.17,2.42882]
[1740670691696,197.14,138.19,138.18,2.42882]
[1740670692305,197.14,138.19,138.18,20.04595929]
[1740670693000,197.14,138.19,138.18,33.56561064]
[1740670694104,12.42,138.22,138.18,33.56561064]
[1740670694310,12.42,138.22,138.19,15.94847135]
[1740670694606,12.42,138.22,138.2,13.51965135]
[1740670694808,19.6612,138.22,138.21,4.84771297]
[1740670695002,12.42,138.22,138.21,8.83989468]
[1740670695202,7.7503,138.25,138.21,13.68760765]
[1740670695508,209.4,138.27,138.22,36.74059575]
[1740670695698,209.4,138.27,138.23,13.48736759]
[1740670695903,209.4,138.27,138.24,13.48736759]
[1740670696099,209.4,138.27,138.25,11.32599578]
[1740670696305,209.4,138.27,138.26,7.24960111]
[1740670696707,197.0,138.27,138.26,19.9656504]
[1740670696904,7.923,138.31,138.26,51.85853318]
[1740670696905,20.323,138.31,138.26,51.85853318]
[1740670697209,20.323,138.31,138.27,19.9656504]
[1740670697512,27.5598,138.31,138.28,7.24960111]
[1740670697701,27.5598,138.31,138.29,7.24960111]
[1740670697902,20.323,138.31,138.29,2.40188814]
[1740670698104,7.237,138.3,138.29,40.66502096]
[1740670698304,7.237,138.3,138.29,47.91462207]
[1740670698907,7.237,138.3,138.29,39.14248389]
[1740670699107,20.323,138.31,138.29,77.04527616]
[1740670699308,20.323,138.31,138.3,69.95225419]
[1740670699505,1.32975628,138.31,138.3,69.95225419]
[1740670699810,12.4,138.34,138.3,77.04527616]
[1740670700007,12.4,138.34,138.33,7.09302197]
[1740670700213,196.86,138.43,138.33,38.05937141]
[1740670700509,1.32901528,138.41,138.4,3.28456206]
[1740670700706,1.32901528,138.41,138.4,45.04036522]
[1740670700906,196.86,138.43,138.4,45.04036522]
[1740670701115,196.86,138.43,138.41,38.05937141]
[1740670701310,196.86,138.43,138.42,38.05937141]
[1740670701711,172.63750788,138.43,138.42,38.05937141]
[1740670702011,7.7052,138.51,138.42,38.05937141]
[1740670702214,13.72817961,138.5,138.48,3.26108054]
[1740670702407,12.4,138.5,138.49,41.17744703]
[1740670702809,12.4,138.5,138.49,73.07032981]
[1740670703018,12.4,138.5,138.49,69.80924927]
[1740670703319,168.11289632,138.52,138.49,124.83284283]
[1740670703513,67.25829618,138.52,138.51,6.93260358]
[1740670703708,1.32754363,138.52,138.51,38.56622035]
[1740670703915,12.38,138.59,138.51,38.56622035]
[1740670704109,12.38,138.59,138.56,3.23597568]
[1740670704309,12.38,138.59,138.58,3.23597568]
[1740670704511,12.38,138.59,138.58,38.56622035]
[1740670704915,12.38,138.59,138.58,70.45910313]
[1740670705215,196.74,138.6,138.58,70.45910313]
[1740670705415,196.74,138.6,138.59,45.44646107]
[1740670705612,196.74,138.6,138.59,38.56622035]
[1740670705814,1.12533154,138.66,138.59,38.56622035]
[1740670706010,13.50533154,138.66,138.62,3.20604006]
[1740670706211,13.50533154,138.66,138.63,38.56622035]
[1740670706421,13.50533154,138.66,138.64,27.18243167]
[1740670706718,13.50533154,138.66,138.65,12.69056857]
[1740670706918,12.38,138.67,138.65,58.88432392]
[1740670707115,12.38,138.67,138.66,12.69056857]
[1740670707315,34.02,138.67,138.66,12.69056857]
[1740670707512,34.02,138.67,138.66,44.58345135]
[1740670707713,12.38,138.67,138.66,44.58345135]
[1740670708416,12.38,138.68,138.66,31.89288278]
[1740670709020,12.38,138.68,138.67,10.84131649]
[1740670709215,19.5972,138.68,138.67,10.84131649]
[1740670709422,41.2372,138.68,138.67,10.84131649]
[1740670710219,7.2177,138.67,138.66,15.14165401]
[1740670710412,12.36,138.67,138.66,3.38335401]
[1740670710611,34.0,138.67,138.66,3.38335401]
[1740670711615,34.0,138.67,138.66,0.05339664]
[1740670711817,12.36,138.67,138.66,0.05339664]
[1740670712417,196.6,138.73,138.66,0.05339664]
[1740670712623,12.36,138.69,138.66,0.05339664]
[1740670713017,12.36,138.68,138.66,0.05339664]
[1740670717530,13.68649809,138.67,138.66,0.05339664]
[1740670717928,12.36,138.67,138.66,0.05339664]
[1740670718723,196.6,138.73,138.66,0.05339664]
[1740670718923,13.68620977,138.72,138.66,0.05339664]
[1740670719129,12.36,138.72,138.66,21.73917378]
[1740670719334,12.36,138.72,138.66,0.05339664]
[1740670719526,196.6,138.73,138.66,0.05339664]
[1740670719832,12.36,138.72,138.66,21.73917378]
[1740670720233,13.68590345,138.71,138.66,0.05339664]
[1740670720431,1.32590345,138.7,138.66,0.05339664]
[1740670720635,1.32590345,138.69,138.66,0.05339664]
[1740670720834,1.32605581,138.68,138.66,0.05339664]
[1740670721036,1.3262412,138.67,138.66,0.05339664]
[1740670721536,12.36,138.71,138.66,0.05339664]
[1740670721738,1.32620713,138.7,138.66,0.05339664]
[1740670722035,1.32620713,138.69,138.66,0.05339664]
[1740670722236,1.32620713,138.68,138.66,0.05339664]
[1740670722437,1.32620713,138.67,138.66,0.05339664]
[1740670724131,181.51630904,138.72,138.66,4.24769553]
[1740670724336,181.51630904,138.72,138.66,0.05339664]
[1740670724538,181.51630904,138.72,138.66,4.24769553]
[1740670724732,188.73140904,138.72,138.66,0.05339664]
[1740670724929,181.51630904,138.72,138.66,0.05339664]
[1740670725135,1.32622492,138.71,138.66,0.05339664]
[1740670725335,1.32622492,138.7,138.67,7.2176]
[1740670725635,196.6,138.73,138.68,4.22597755]
[1740670725829,1.32593493,138.72,138.69,4.22473051]
[1740670726037,208.96,138.73,138.7,4.22473051]
[1740670726234,1.3258778,138.72,138.71,4.22473051]
[1740670726538,208.96,138.73,138.7,4.22473051]
[1740670726731,208.96,138.73,138.71,4.22473051]
[1740670726938,208.96,138.73,138.72,4.22473051]
[1740670727141,1.32572846,138.73,138.71,4.22473051]
[1740670727328,12.36,138.78,138.72,9.46847425]
[1740670727530,1.32551346,138.77,138.73,16.68297425]
[1740670727735,1.32551346,138.76,138.74,4.22473051]
[1740670728040,12.36,138.77,138.75,4.22473051]
[1740670728234,1.3254619,138.76,138.74,11.12571032]
[1740670728441,1.3254619,138.75,138.74,11.07871735]
[1740670728637,1.3254619,138.75,138.74,4.28718279]
[1740670729142,1.3254619,138.75,138.74,15.43999355]
[1740670730137,30.1589619,138.75,138.74,11.20596228]
[1740670730733,30.1589619,138.75,138.74,0.05315152]
[1740670730937,22.9454619,138.75,138.64,25.34956514]
[1740670731136,1.3254619,138.74,138.65,18.47605072]
[1740670731335,7.2157,138.71,138.66,18.47605072]
[1740670731540,13.66622153,138.7,138.67,18.47605072]
[1740670731741,12.34,138.7,138.68,18.49852083]
[1740670731941,1.32619324,138.69,138.67,25.13257392]
[1740670732137,12.38885581,138.7,138.68,18.57829033]
[1740670732342,12.38885581,138.7,138.69,18.54997354]
[1740670732642,13.71491565,138.7,138.69,18.56245129]
[1740670732941,19.60495581,138.7,138.69,34.74031401]
[1740670733137,42.57120373,138.7,138.69,34.74031401]
[1740670733337,20.93120373,138.7,138.69,25.06444774]
[1740670733534,13.71510373,138.7,138.69,34.04184547]
[1740670734444,20.93120373,138.7,138.69,34.04184547]
[1740670734646,13.71510373,138.7,138.69,39.94442326]
[1740670735446,19.60495581,138.7,138.69,39.94442326]
[1740670735646,20.93105599,138.7,138.69,39.94442326]
[1740670735847,19.60495581,138.7,138.69,39.94442326]
[1740670736643,20.93102706,138.7,138.69,39.94442326]
[1740670737444,12.38885581,138.7,138.69,39.94442326]
[1740670738238,19.60495581,138.7,138.69,20.22069133]
[1740670738445,20.93102898,138.7,138.69,14.66532326]
[1740670738647,42.57102898,138.7,138.69,2.966e-05]
[1740670738950,7.2166,138.69,138.68,0.04642548]
[1740670739147,8.54267317,138.69,138.68,0.04642548]
[1740670739350,211.69898221,138.69,138.68,2.548e-05]
[1740670740349,30.18267317,138.69,138.68,2.548e-05]
[1740670740648,46.1981382,138.69,138.6,46.71124152]
[1740670740840,1.44216902,138.68,138.6,46.71124152]
[1740670741041,7.2196,138.64,138.6,46.71124152]
[1740670741243,12.34,138.63,138.6,46.71124152]
[1740670741441,12.34,138.63,138.61,10.56825252]
[1740670741742,12.39236201,138.63,138.62,10.56963593]
[1740670742741,12.39236201,138.63,138.62,32.25541307]
[1740670742940,12.39236201,138.63,138.62,10.56963593]
[1740670743152,13.78216902,138.68,138.64,7.2187]
[1740670743348,13.78216902,138.68,138.62,10.56963593]
[1740670743349,13.78216902,138.68,138.65,10.56963593]
[1740670743549,13.78216902,138.68,138.66,10.56963593]
[1740670743752,13.78216902,138.68,138.67,17.78733593]
[1740670744051,12.34,138.68,138.67,17.78733593]
[1740670744247,0.05111747,138.69,138.67,10.56963593]
[1740670744449,196.18,138.71,138.68,10.56963593]
[1740670744653,196.18,138.71,138.69,10.56963593]
[1740670744848,196.18,138.71,138.7,17.78573593]
[1740670745248,389.02317477,138.79,138.7,10.56963593]
[1740670745448,12.34,138.75,138.71,10.56963593]
[1740670745643,12.34,138.75,138.72,10.70863641]
[1740670745843,12.34,138.75,138.73,10.66210177]
[1740670746048,12.34,138.75,138.74,10.66210177]
[1740670746450,187.4180743,138.76,138.74,10.66210177]
[1740670746656,187.4180743,138.76,138.75,10.66210177]
[1740670746855,187.4180743,138.76,138.72,0.04653464]
[1740670747155,187.4180743,138.76,138.72,21.73231178]
[1740670747355,187.4180743,138.76,138.72,0.04653464]
[1740670747652,12.34,138.77,138.75,7.2135]
[1740670747852,12.34,138.77,138.72,0.04653464]
[1740670748056,197.02317477,138.79,138.72,0.04653464]
[1740670748245,209.36317477,138.79,138.72,0.04653464]
[1740670748444,209.36317477,138.79,138.73,7.2142]
[1740670748749,209.36317477,138.79,138.72,0.04653464]
[1740670748956,197.02317477,138.79,138.72,0.04653464]
[1740670749353,1.32533266,138.78,138.72,21.73231178]
[1740670749651,1.32533266,138.77,138.72,21.73231178]
[1740670749856,1.32545039,138.76,138.72,21.73231178]
[1740670750047,1.32545039,138.78,138.72,21.73231178]
[1740670750251,1.32544361,138.77,138.72,0.04653464]
[1740670750447,197.02317477,138.79,138.72,0.04653464]
[1740670750654,1.32540422,138.78,138.72,0.04653464]
[1740670750857,1.32540422,138.77,138.72,0.04653464]
[1740670751257,12.34,138.77,138.72,0.04653464]
[1740670751460,196.22,138.79,138.72,0.04653464]
[1740670751659,192.0,138.87,138.72,0.04653464]
[1740670751660,12.34,138.85,138.72,0.04653464]
[1740670751857,1.32486841,138.84,138.74,7.214]
[1740670752055,1.32486841,138.85,138.77,0.05497351]
[1740670752357,208.48,138.87,138.76,7.2126]
[1740670752548,1.3247142,138.86,138.8,0.04588928]
[1740670752752,208.48,138.87,138.8,0.04588928]
[1740670752949,196.14,138.87,138.8,0.04588928]
[1740670753454,177.5584,138.87,138.8,7.25638928]
[1740670753659,177.5584,138.87,138.8,0.04588928]
[1740670753855,12.34,138.91,138.8,0.04588928]
[1740670754160,200.0016,138.95,138.76,7.9786]
[1740670754361,13.66416776,138.94,138.84,0.05366387]
[1740670754560,12.34,138.93,138.76,20.3186]
[1740670754950,12.34,138.93,138.88,0.04973828]
[1740670755263,196.08,138.95,138.89,0.05022659]
[1740670755454,12.34,139.0,138.89,0.05022659]
[1740670755656,12.34,139.0,138.83,12.34]
[1740670755857,12.34,139.0,138.93,0.04701643]
[1740670756057,12.34,139.0,138.83,12.34]
[1740670756264,12.34,139.0,138.95,0.05441254]
[1740670756459,12.34,139.0,138.83,12.34]
[1740670756654,115.76575992,139.12,138.96,0.05066321]
[1740670756858,7.1964,139.08,138.92,7.2042]
[1740670757060,7.1964,139.08,139.0,0.04737111]
[1740670757261,12.34,139.11,139.0,0.04737111]
[1740670757461,7.196,139.09,138.9,12.34]
[1740670757662,12.34,139.11,139.02,0.05160965]
[1740670757960,8.51872088,139.09,138.94,7.2032]
[1740670758157,1.32272088,139.08,139.05,0.04750963]
[1740670758459,1.32253461,139.1,138.9,12.34]
[1740670758657,208.32,139.14,139.05,0.05314273]
[1740670758859,7.195,139.11,138.96,7.2021]
[1740670759055,7.195,139.11,138.91,34.63275829]
[1740670759361,3.7614,139.13,138.91,34.63275829]
[1740670759558,195.98,139.14,138.91,12.94698115]
[1740670759859,3.7614,139.2,139.0,0.05508071]
[1740670760064,8.51286053,139.19,139.01,12.34]
[1740670760260,1.32176053,139.18,139.02,11.5072]
[1740670760464,1.32173746,139.19,139.09,0.04545014]
[1740670760764,77.51953136,139.24,139.05,12.32]
[1740670760961,1.32132144,139.23,139.05,12.32]
[1740670761265,1.32127127,139.22,139.13,0.05478058]
[1740670761457,1.32127127,139.23,139.13,0.05478058]
[1740670761656,1.32127127,139.23,139.05,12.32]
[1740670761657,12.32,139.26,139.05,12.32]
[1740670761860,7.1891,139.23,139.17,0.05132467]
[1740670762061,12.32,139.26,139.17,0.05132467]
[1740670762363,1.32092258,139.25,139.17,21.68577714]
[1740670762563,1.32092258,139.24,139.2,0.04861785]
[1740670762761,1.32092258,139.23,139.2,0.04861785]
[1740670762959,1.32092258,139.22,139.06,11.5062]
[1740670763165,12.32,139.24,139.2,0.04634799]
[1740670763364,7.1897,139.21,139.2,0.04634799]
[1740670763562,1.32113856,139.21,139.06,11.5062]
[1740670763762,5.26943856,139.2,139.19,0.05348235]
[1740670763963,12.45963856,139.2,139.19,0.05348235]
[1740670764164,5.26943856,139.2,139.06,11.5062]
[1740670764362,1.32154154,139.19,139.06,33.19197714]
[1740670764564,1.32154154,139.18,139.06,40.38887714]
[1740670764761,13.64154154,139.17,139.06,33.19197714]
[1740670764966,1.32154154,139.16,139.06,33.19197714]
[1740670765163,12.32,139.17,139.06,11.5062]
[1740670765469,0.04964778,139.12,139.1,0.04958657]
[1740670765868,12.32,139.17,139.1,0.04958657]
[1740670766258,0.05171249,139.12,139.1,0.04958657]
[1740670766462,16.2683,139.2,139.1,0.04958657]
[1740670766764,1.32132824,139.19,139.1,0.04958657]
[1740670766969,16.2683,139.2,139.1,0.04958657]
[1740670766970,1.32132824,139.18,139.1,21.68577714]
[1740670767170,1.32132824,139.17,139.1,21.68577714]
[1740670767360,7.1928,139.15,139.1,21.68577714]
[1740670767561,16.2683,139.2,139.1,21.68577714]
[1740670767866,197.00141187,139.19,139.14,0.04981676]
[1740670768060,1.32141187,139.18,139.07,37.20644]
[1740670768265,1.32141187,139.17,139.07,37.20644]
[1740670768463,1.32141187,139.16,139.07,58.89221714]